bitfinex-derivatives/quotes_BTCF0:USTF0_20251011
["timestamp","ask_amount","ask_price","bid_price","bid_amount"]
[1760152102919,0.57138543,112510.0,112500.0,0.48228418]
[1760152103721,0.57138543,112510.0,112500.0,0.46228418]
[1760152103922,0.93218543,112510.0,112500.0,0.06228418]
[1760152104110,0.93218543,112510.0,112500.0,0.01487]
[1760152104516,0.93218543,112510.0,112500.0,0.01387]
[1760152105124,1.33218543,112510.0,112500.0,0.001]
[1760152105326,0.93218543,112510.0,112500.0,0.01474]
[1760152105524,0.87154463,112510.0,112500.0,0.01474]
[1760152105727,1.27154463,112510.0,112490.0,0.03267418]
[1760152105923,0.0888032,112470.0,112460.0,0.07644682]
[1760152106217,0.4496032,112470.0,112460.0,0.07726592]
[1760152106818,0.4768257,112470.0,112460.0,0.07726592]
[1760152107022,0.47589352,112470.0,112460.0,0.07726592]
[1760152107520,0.02729032,112470.0,112460.0,0.48726592]
[1760152107715,0.11609352,112470.0,112460.0,0.48726592]
[1760152107918,0.02729032,112470.0,112460.0,0.48726592]
[1760152108324,0.47689302,112470.0,112460.0,0.42374]
[1760152108518,0.11609302,112470.0,112460.0,0.48726592]
[1760152108718,0.11609302,112470.0,112460.0,0.42374]
[1760152108919,0.47689302,112470.0,112460.0,0.42374]
[1760152109116,0.38809032,112470.0,112460.0,0.42374]
[1760152109319,0.47689302,112470.0,112460.0,0.42374]
[1760152109527,6.782e-05,112470.0,112460.0,0.48726592]
[1760152110021,6.782e-05,112470.0,112460.0,0.93687652]
[1760152110219,6.782e-05,112470.0,112460.0,0.84806592]
[1760152111127,0.3498213,112470.0,112460.0,0.93687652]
[1760152111328,0.3498213,112470.0,112460.0,0.84806592]
[1760152111627,0.3498213,112470.0,112460.0,0.78454]
[1760152111831,0.3498213,112470.0,112460.0,0.8953406]
[1760152112221,0.3058213,112470.0,112460.0,0.8953406]
[1760152112631,0.1156029,112480.0,112470.0,0.03573]
[1760152112824,0.43854828,112480.0,112470.0,0.03573]
[1760152113529,0.34975348,112480.0,112470.0,0.5245327]
[1760152113726,0.34975348,112480.0,112470.0,0.8853327]
[1760152113920,0.34975348,112480.0,112470.0,0.9953327]
[1760152115031,0.34975348,112480.0,112470.0,0.50653]
[1760152115533,0.34975348,112480.0,112470.0,0.5953327]
[1760152116521,0.34975348,112480.0,112470.0,0.2345327]
[1760152116726,0.34975348,112480.0,112470.0,0.5953327]
[1760152117829,0.35484348,112490.0,112480.0,0.1245249]
[1760152118026,0.35484348,112490.0,112480.0,0.5153249]
[1760152118525,0.35484348,112490.0,112480.0,0.1545249]
[1760152118723,0.35484348,112490.0,112480.0,0.5153249]
[1760152118927,0.44463048,112490.0,112480.0,0.04374]
[1760152119127,0.80543048,112490.0,112480.0,0.04374]
[1760152119329,1.20543048,112490.0,112480.0,0.01374]
[1760152120130,1.20543048,112490.0,112480.0,0.02374]
[1760152121828,1.20543048,112490.0,112480.0,0.01374]
[1760152122334,0.80543048,112490.0,112480.0,0.01374]
[1760152122632,0.80543048,112490.0,112450.0,0.43806592]
[1760152122633,0.0888107,112460.0,112450.0,0.01433352]
[1760152122828,0.0888186,112450.0,112440.0,0.01374]
[1760152123135,0.79937208,112450.0,112440.0,0.01374]
[1760152124034,1.19937208,112450.0,112440.0,0.01374]
[1760152124235,0.0888264,112440.0,112430.0,0.01374]
[1760152124435,0.4496264,112440.0,112430.0,0.01374]
[1760152125232,0.0888343,112430.0,112420.0,0.01374]
[1760152125434,0.0888422,112420.0,112410.0,0.01374]
[1760152125735,0.4496422,112420.0,112410.0,0.01374]
[1760152126634,0.51933265,112420.0,112410.0,0.01374]
[1760152127629,0.0888501,112410.0,112400.0,0.09226596]
[1760152127835,0.79940358,112410.0,112400.0,0.09226596]
[1760152128231,0.75540358,112410.0,112400.0,0.09226596]
[1760152128431,0.78207117,112410.0,112400.0,0.01380894]
[1760152129637,0.73722107,112410.0,112400.0,0.01380894]
[1760152129834,0.37642107,112410.0,112400.0,0.01380894]
[1760152130228,0.73722107,112410.0,112400.0,0.01380894]
[1760152130437,0.82607127,112410.0,112400.0,0.01380894]
[1760152131938,1.22607127,112410.0,112400.0,6.894e-05]
[1760152133836,0.43861948,112390.0,112380.0,0.09219702]
[1760152134034,0.79941948,112390.0,112380.0,0.09219702]
[1760152134838,0.79948842,112390.0,112380.0,0.09219702]
[1760152135134,0.34982242,112390.0,112380.0,0.90460702]
[1760152135341,0.79948822,112390.0,112380.0,0.46535]
[1760152135641,0.93055259,112390.0,112380.0,0.44474]
[1760152135931,0.52575259,112390.0,112380.0,0.44474]
[1760152136137,0.52575259,112390.0,112380.0,0.46635]
[1760152136928,0.88655259,112390.0,112380.0,0.46635]
[1760152137130,0.88655259,112390.0,112380.0,0.01474]
[1760152137529,0.88655259,112390.0,112380.0,0.09319702]
[1760152138027,0.88655259,112390.0,112380.0,0.01474]
[1760152138227,0.93048365,112390.0,112380.0,0.01474]
[1760152138431,0.93048365,112390.0,112380.0,0.01374]
[1760152138636,0.93048365,112390.0,112380.0,0.01474]
[1760152138831,0.93048365,112390.0,112380.0,0.1552237]
[1760152139032,0.48081785,112390.0,112380.0,0.99448072]
[1760152139239,0.48081785,112390.0,112380.0,0.9160237]
[1760152140039,0.56968365,112390.0,112380.0,0.42615]
[1760152140241,0.56968365,112390.0,112380.0,0.50662031]
[1760152140542,0.48081785,112390.0,112380.0,0.59549411]
[1760152140736,0.56968375,112390.0,112380.0,0.50662031]
[1760152140930,0.48081785,112390.0,112380.0,0.9160238]
[1760152141138,0.46527647,112410.0,112400.0,0.03521]
[1760152141336,0.37642107,112410.0,112400.0,0.534868]
[1760152141633,0.15853645,112420.0,112410.0,0.1240601]
[1760152141634,0.41944393,112420.0,112410.0,0.1240601]
[1760152141938,0.43858898,112430.0,112410.0,1.08433041]
[1760152142146,0.34975348,112430.0,112420.0,0.4848522]
[1760152142443,0.37740302,112430.0,112420.0,0.6048522]
[1760152143143,0.46623732,112430.0,112420.0,0.51601]
[1760152143343,0.37740302,112430.0,112420.0,1.0048522]
[1760152143543,0.02764954,112430.0,112420.0,1.0048522]
[1760152143736,0.4496216,112450.0,112430.0,0.0136]
[1760152143933,0.41909157,112450.0,112440.0,0.4848364]
[1760152144139,0.06933809,112450.0,112440.0,0.5548364]
[1760152144337,0.48153564,112460.0,112450.0,0.0136]
[1760152144640,0.13178216,112460.0,112450.0,0.6148285]
[1760152144836,0.0888029,112470.0,112460.0,0.03521]
[1760152145044,1.14265286,112480.0,112470.0,0.0136]
[1760152145340,0.79935238,112480.0,112470.0,0.15521]
[1760152145738,0.79935238,112480.0,112470.0,0.1336]
[1760152146837,0.79935238,112480.0,112470.0,0.15521]
[1760152147041,0.80035238,112480.0,112470.0,0.15521]
[1760152147242,0.86988505,112480.0,112470.0,0.15521]
[1760152147437,0.42128615,112480.0,112470.0,1.0048134]
[1760152147643,0.07662267,112480.0,112470.0,1.0048134]
[1760152147834,0.51517165,112480.0,112470.0,0.55521]
[1760152148033,0.51417165,112480.0,112470.0,0.55521]
[1760152148542,0.64567736,112480.0,112470.0,0.55521]
[1760152148946,0.55688186,112480.0,112470.0,1.0048133]
[1760152149138,0.07462267,112480.0,112470.0,1.0048133]
[1760152149535,0.07462267,112480.0,112470.0,0.55521]
[1760152149735,0.16341807,112480.0,112470.0,0.15521]
[1760152149940,0.07462267,112480.0,112470.0,0.6048133]
[1760152151546,0.07462267,112480.0,112470.0,1.0048133]
[1760152152340,0.16341807,112480.0,112470.0,0.91801]
[1760152153039,0.16341807,112480.0,112470.0,0.91601]
[1760152153247,0.16341807,112480.0,112470.0,0.91801]
[1760152153444,0.16341807,112480.0,112470.0,0.55721]
[1760152153644,0.16341807,112480.0,112470.0,0.15721]
[1760152155746,0.52421807,112480.0,112470.0,0.0156]
[1760152157842,0.52421807,112480.0,112470.0,1e-07]
[1760152157843,0.94698686,112480.0,112470.0,1e-07]
[1760152159048,0.0878112,112460.0,112450.0,0.0136]
[1760152159244,0.79836468,112460.0,112450.0,0.0136]
[1760152160250,0.3608,112470.0,112450.0,0.2440291]
[1760152160449,0.4496075,112470.0,112460.0,0.03521]
[1760152160944,0.4496075,112470.0,112460.0,0.15521]
[1760152161848,0.52422277,112480.0,112470.0,0.03684]
[1760152162148,0.07462267,112480.0,112470.0,0.6164433]
[1760152162452,0.16341817,112480.0,112470.0,1.0164433]
[1760152162653,0.07462267,112480.0,112470.0,1.0164433]
[1760152162847,0.16341817,112480.0,112470.0,1.0164433]
[1760152163152,0.07462267,112480.0,112470.0,1.0164433]
[1760152163548,0.16341817,112480.0,112470.0,1.0164433]
[1760152164153,0.07462267,112480.0,112470.0,1.0164433]
[1760152165048,0.02727549,112500.0,112490.0,0.0887876]
[1760152165255,0.02228285,112500.0,112490.0,0.6164276]
[1760152165452,0.11106255,112500.0,112490.0,0.6164276]
[1760152165653,0.57031173,112510.0,112490.0,0.6164276]
[1760152165856,0.72819193,112510.0,112500.0,0.03684]
[1760152167053,0.72919193,112510.0,112500.0,0.03684]
[1760152168057,0.75309708,112510.0,112500.0,0.03684]
[1760152168256,1.11489708,112510.0,112500.0,0.03684]
[1760152168456,0.75409708,112510.0,112500.0,0.39764]
[1760152168961,0.75409708,112510.0,112500.0,0.03684]
[1760152169260,0.23080733,112510.0,112500.0,0.6264196]
[1760152169453,0.31957903,112510.0,112500.0,0.53764]
[1760152169654,0.73018793,112510.0,112500.0,0.53764]
[1760152169861,0.73018793,112510.0,112500.0,0.17684]
[1760152170160,0.09492964,112510.0,112500.0,1.0264196]
[1760152170549,0.09492964,112510.0,112500.0,0.53764]
[1760152170853,0.59431024,112510.0,112500.0,0.53764]
[1760152171250,0.59431024,112510.0,112500.0,0.93764]
[1760152171660,0.59431024,112510.0,112500.0,0.57684]
[1760152172057,0.59431024,112510.0,112500.0,0.17684]
[1760152172455,0.72420958,112510.0,112500.0,0.17684]
[1760152172753,1.08500958,112510.0,112500.0,0.15364]
[1760152174655,1.08500958,112510.0,112500.0,0.03684]
[1760152174856,1.08500958,112510.0,112500.0,0.01364]
[1760152175164,0.0887796,112500.0,112490.0,0.01364]
[1760152175365,0.88219101,112500.0,112490.0,0.01364]
[1760152175562,0.88219101,112500.0,112490.0,0.02364]
[1760152175865,0.02200251,112500.0,112490.0,0.8964275]
[1760152176058,0.11078211,112500.0,112490.0,0.8964275]
[1760152176659,0.52239101,112500.0,112490.0,0.1356275]
[1760152177067,0.5003885,112500.0,112490.0,0.04684]
[1760152177764,1.2611885,112500.0,112490.0,0.02364]
[1760152178257,1.2611885,112500.0,112470.0,0.09597]
[1760152178258,0.0887954,112480.0,112470.0,0.09597]
[1760152178460,0.4994043,112480.0,112470.0,0.11917]
[1760152178654,0.8602043,112480.0,112470.0,0.11917]
[1760152178860,1.28367933,112480.0,112470.0,0.08233]
[1760152179362,1.72766263,112480.0,112450.0,0.06359872]
[1760152179558,0.088827,112440.0,112430.0,0.11631031]
[1760152179764,0.4994359,112440.0,112430.0,0.12631031]
[1760152179961,0.4496218,112450.0,112440.0,0.03684]
[1760152180358,0.8602307,112450.0,112440.0,0.03684]
[1760152180559,0.088827,112440.0,112430.0,0.01364]
[1760152180755,0.8602359,112440.0,112430.0,0.09311031]
[1760152180961,1.2602359,112440.0,112430.0,0.09311031]
[1760152181164,0.088827,112440.0,112430.0,0.11631031]
[1760152181364,0.4994359,112440.0,112430.0,0.11631031]
[1760152182062,0.4994359,112440.0,112430.0,0.47711031]
[1760152182264,0.3608,112460.0,112450.0,0.01364]
[1760152182464,0.0888185,112450.0,112440.0,0.01364]
[1760152182662,0.8602274,112450.0,112440.0,0.04684]
[1760152183166,0.0888264,112440.0,112430.0,0.01364]
[1760152183469,0.8602353,112440.0,112430.0,0.01364]
[1760152183769,0.8602353,112440.0,112430.0,0.03684]
[1760152184667,0.8602353,112440.0,112430.0,0.01364]
[1760152184864,0.0888343,112430.0,112420.0,0.07947031]
[1760152185062,0.8602432,112430.0,112420.0,0.09311031]
[1760152185256,1.2602432,112430.0,112420.0,0.09311031]
[1760152185463,1.2602432,112430.0,112420.0,0.07947031]
[1760152185664,0.0888422,112420.0,112410.0,0.17548031]
[1760152185967,0.0888581,112400.0,112390.0,0.12351885]
[1760152186167,0.0888581,112400.0,112390.0,0.10987885]
[1760152186168,1.221067,112400.0,112390.0,0.10987885]
[1760152186369,0.0888739,112380.0,112370.0,0.1651725]
[1760152186564,1.2210828,112380.0,112370.0,0.12525872]
[1760152186766,0.7216,112380.0,112370.0,0.12525872]
[1760152187062,0.0888739,112380.0,112370.0,0.01364]
[1760152187365,0.86037012,112380.0,112370.0,0.1651725]
[1760152187963,0.44976122,112380.0,112370.0,0.1651725]
[1760152188167,0.04496122,112380.0,112370.0,0.1651725]
[1760152188365,0.41069622,112380.0,112370.0,0.02364]
[1760152188671,0.41069622,112380.0,112370.0,0.42364]
[1760152189469,0.41069622,112380.0,112370.0,0.55842781]
[1760152189660,0.49957012,112380.0,112370.0,0.12522781]
[1760152189865,0.86037012,112380.0,112370.0,0.12522781]
[1760152190163,0.77149622,112380.0,112370.0,0.25686781]
[1760152190370,0.41069622,112380.0,112370.0,0.25686781]
[1760152190569,0.41069622,112380.0,112370.0,0.23686781]
[1760152190769,8.732e-05,112380.0,112370.0,0.88608]
[1760152190966,0.41069622,112380.0,112370.0,0.9749618]
[1760152191163,0.07161544,112380.0,112370.0,1.08654961]
[1760152191465,0.07161544,112380.0,112370.0,0.9749618]
[1760152191672,0.07161544,112380.0,112370.0,0.5749618]
[1760152191870,0.48222434,112380.0,112370.0,0.5749618]
[1760152192571,0.48222434,112380.0,112370.0,0.48608]
[1760152193873,0.48222434,112380.0,112370.0,0.12628]
[1760152194169,0.48222434,112380.0,112370.0,1.08750926]
[1760152194473,0.38411198,112410.0,112400.0,0.03525]
[1760152194667,0.50496086,112410.0,112400.0,0.03525]
[1760152194965,0.50496086,112410.0,112400.0,0.4849081]
[1760152195163,0.48164888,112410.0,112400.0,0.9249081]
[1760152195364,0.07103998,112410.0,112400.0,1.01454528]
[1760152195565,0.4496334,112440.0,112430.0,0.01337]
[1760152195769,0.8602423,112440.0,112430.0,0.01337]
[1760152196170,0.0888344,112430.0,112420.0,0.01337]
[1760152196469,0.52245656,112430.0,112420.0,0.01337]
[1760152196671,0.8602433,112430.0,112420.0,0.01337]
[1760152197371,0.0888344,112430.0,112420.0,0.02337]
[1760152197567,1.2602433,112430.0,112420.0,0.02337]
[1760152197870,0.4994433,112430.0,112420.0,0.02337]
[1760152198370,0.5004433,112430.0,112420.0,0.02337]
[1760152198766,0.88440438,112430.0,112420.0,0.02337]
[1760152198961,0.52260438,112430.0,112420.0,0.02337]
[1760152199166,0.88340438,112430.0,112420.0,0.02337]
[1760152199366,0.52260438,112430.0,112420.0,0.04525]
[1760152200266,1.01592782,112430.0,112420.0,0.04525]
[1760152200467,1.41592782,112430.0,112420.0,0.01337]
[1760152200868,1.00531892,112430.0,112420.0,0.01337]
[1760152201073,0.52260428,112430.0,112420.0,0.04525]
[1760152201372,0.88340428,112430.0,112420.0,0.03525]
[1760152201567,0.88340428,112430.0,112420.0,0.04525]
[1760152202068,0.88440428,112430.0,112420.0,0.04525]
[1760152202466,0.52360428,112430.0,112420.0,0.04525]
[1760152202663,0.88340428,112430.0,112420.0,0.01337]
[1760152202876,0.47279538,112430.0,112420.0,0.01337]
[1760152203071,0.88340428,112430.0,112420.0,0.02337]
[1760152203969,1.0149285,112430.0,112420.0,0.01337]
[1760152204368,1.4149285,112430.0,112420.0,0.01337]
[1760152204676,0.088843,112420.0,112410.0,0.01337]
[1760152204875,1.2708608,112420.0,112410.0,0.01337]
[1760152205069,0.8602519,112420.0,112410.0,0.01337]
[1760152205376,0.0888587,112400.0,112390.0,0.01337]
[1760152205669,0.8602676,112400.0,112390.0,0.01337]
[1760152205872,0.4994676,112400.0,112390.0,0.01337]
[1760152206068,0.8602676,112400.0,112390.0,0.01337]
[1760152206970,1.2602676,112400.0,112390.0,0.01337]
[1760152207173,0.8602676,112400.0,112390.0,0.01337]
[1760152207375,0.8602676,112400.0,112390.0,0.03525]
[1760152207572,0.4994676,112400.0,112390.0,0.03525]
[1760152207771,0.8602676,112400.0,112390.0,0.03525]
[1760152208072,0.7714089,112410.0,112400.0,0.01337]
[1760152208576,0.8602596,112410.0,112400.0,0.04525]
[1760152208965,0.8602596,112410.0,112400.0,0.01337]
[1760152209374,0.0888586,112400.0,112390.0,0.01337]
[1760152209675,0.8602675,112400.0,112390.0,0.01337]
[1760152210070,0.0888666,112390.0,112380.0,0.01337]
[1760152210269,0.4496666,112390.0,112380.0,0.01337]
[1760152210473,0.0888745,112380.0,112370.0,0.01337]
[1760152210664,0.4994834,112380.0,112370.0,0.01337]
[1760152211066,0.0888824,112370.0,112360.0,0.11151718]
[1760152211273,0.8602913,112370.0,112360.0,0.11151718]
[1760152211473,0.0888903,112360.0,112350.0,0.09579]
[1760152211672,1.2709081,112360.0,112350.0,0.08242]
[1760152211872,1.6709081,112360.0,112350.0,0.08242]
[1760152212168,1.69389686,112360.0,112350.0,0.08242]
[1760152212972,0.87267906,112360.0,112350.0,0.08242]
[1760152213171,1.28328796,112360.0,112350.0,0.08242]
[1760152213672,1.28328796,112360.0,112350.0,0.09579]
[1760152214076,1.69389686,112360.0,112350.0,0.08242]
[1760152214276,0.0889055,112340.0,112330.0,0.01337]
[1760152214482,0.4497055,112340.0,112330.0,0.01337]
[1760152214778,0.8603144,112340.0,112330.0,0.01337]
[1760152216582,0.93047409,112340.0,112330.0,0.01337]
[1760152216881,0.88647409,112340.0,112330.0,0.01337]
[1760152217080,1.01777015,112340.0,112330.0,0.01337]
[1760152217676,0.60716125,112340.0,112330.0,0.03525]
[1760152217880,0.65697015,112340.0,112330.0,0.03525]
[1760152218282,1.01777015,112340.0,112330.0,0.03525]
[1760152219185,1.01777015,112340.0,112330.0,0.01337]
[1760152219778,0.0889134,112330.0,112320.0,0.01337]
[1760152219978,0.8603223,112330.0,112320.0,0.02337]
[1760152221086,0.8603223,112330.0,112320.0,0.01337]
[1760152221287,0.0889213,112320.0,112310.0,0.05204339]
[1760152221580,0.8603302,112320.0,112310.0,0.05204339]
[1760152222081,0.4106089,112320.0,112310.0,0.16280269]
[1760152222387,0.4106089,112320.0,112310.0,0.92360269]
[1760152222796,0.56225575,112340.0,112330.0,0.01382]
[1760152223084,0.0889133,112330.0,112320.0,0.01382]
[1760152223291,0.8603222,112330.0,112320.0,0.01382]
[1760152223585,0.4106089,112330.0,112320.0,0.04565]
[1760152223777,0.4995223,112330.0,112320.0,0.04565]
[1760152223979,0.4106089,112330.0,112320.0,0.04565]
[1760152224390,0.4106089,112330.0,112320.0,0.40645]
[1760152224688,0.4995223,112330.0,112320.0,0.40645]
[1760152225185,0.4106089,112330.0,112320.0,0.80645]
[1760152226188,0.4995223,112330.0,112320.0,0.80645]
[1760152227087,0.07015969,112340.0,112320.0,0.80645]
[1760152227288,0.38378876,112360.0,112350.0,0.03565]
[1760152227289,0.02298876,112360.0,112350.0,0.03565]
[1760152227590,0.3608,112380.0,112350.0,0.4853476]
[1760152227891,0.088874,112380.0,112370.0,0.03565]
[1760152228286,0.449674,112380.0,112370.0,0.03565]
[1760152228480,0.449674,112380.0,112370.0,0.04565]
[1760152228894,0.84227529,112380.0,112370.0,0.01382]
[1760152229691,0.84327529,112380.0,112370.0,0.01382]
[1760152229991,0.84427529,112380.0,112370.0,0.01382]
[1760152230490,0.84427529,112380.0,112360.0,0.01382]
[1760152230491,0.0888823,112370.0,112360.0,0.01382]
[1760152230682,0.65237577,112370.0,112360.0,0.01382]
[1760152230886,0.0888902,112360.0,112350.0,0.37462]
[1760152231087,0.80025476,112360.0,112350.0,0.01382]
[1760152231290,1.20025476,112360.0,112350.0,0.01382]
[1760152231688,0.088906,112340.0,112330.0,0.01382]
[1760152231893,0.0889139,112330.0,112320.0,0.01382]
[1760152232085,0.0889139,112330.0,112320.0,0.04565]
[1760152232288,0.0449139,112330.0,112320.0,0.04565]
[1760152233489,0.4067139,112330.0,112320.0,0.04565]
[1760152233890,0.4067139,112330.0,112320.0,0.02382]
[1760152234292,0.001,112330.0,112320.0,0.44565]
[1760152234991,0.02845039,112330.0,112320.0,0.44565]
[1760152235186,0.02745039,112330.0,112320.0,0.80645]
[1760152235391,0.02745039,112330.0,112320.0,0.44565]
[1760152236290,0.47716369,112330.0,112320.0,0.44565]
[1760152236688,0.11636369,112330.0,112320.0,0.44565]
[1760152236991,0.47716369,112330.0,112320.0,0.02382]
[1760152237387,0.60951166,112330.0,112320.0,0.02382]
[1760152237790,0.59927622,112330.0,112320.0,0.04565]
[1760152238189,0.59927622,112330.0,112320.0,0.8953712]
[1760152238190,0.37801495,112330.0,112320.0,0.8953712]
[1760152238391,0.37801495,112330.0,112320.0,0.5345712]
[1760152238592,0.46692825,112330.0,112320.0,0.04565]
[1760152238794,0.82772825,112330.0,112320.0,0.02382]
[1760152239101,0.82772825,112330.0,112320.0,0.01382]
[1760152239792,0.46692825,112330.0,112320.0,0.02382]
[1760152240094,0.82772825,112330.0,112320.0,0.04565]
[1760152240291,0.37801495,112330.0,112320.0,0.04565]
[1760152240489,0.46692895,112330.0,112320.0,0.04565]
[1760152241599,0.46792895,112330.0,112320.0,0.04565]
[1760152241898,0.37901495,112330.0,112320.0,0.04565]
[1760152242089,0.60306388,112330.0,112320.0,0.04565]
[1760152242692,0.60206388,112330.0,112320.0,0.04565]
[1760152242987,0.96286388,112330.0,112320.0,0.02382]
[1760152243190,1.36286388,112330.0,112320.0,0.01382]
[1760152243391,0.0889218,112320.0,112310.0,0.05249339]
[1760152243695,0.47471314,112320.0,112310.0,0.05249339]
[1760152243888,0.4497218,112320.0,112310.0,0.05249339]
[1760152245104,0.0889218,112320.0,112310.0,0.08432339]
[1760152245397,0.4497218,112320.0,112310.0,0.05249339]
[1760152245990,0.47458182,112320.0,112310.0,0.05249339]
[1760152246200,0.87458182,112320.0,112310.0,0.05249339]
[1760152246698,0.8497218,112320.0,112310.0,0.05249339]
[1760152247293,0.4497218,112320.0,112310.0,0.07432339]
[1760152247596,0.0889218,112320.0,112310.0,0.08432339]
[1760152247794,0.35056456,112320.0,112310.0,0.93405309]
[1760152247998,0.35056456,112320.0,112310.0,0.57325309]
[1760152248200,0.43948636,112320.0,112310.0,0.53467309]
[1760152248500,0.35056456,112320.0,112310.0,0.89547309]
[1760152248903,0.35056456,112320.0,112310.0,0.88547309]
[1760152249200,0.35056456,112320.0,112310.0,0.89547309]
[1760152249789,0.80028636,112320.0,112310.0,0.03574339]
[1760152249994,0.80028636,112320.0,112310.0,0.02391339]
[1760152250201,0.80028636,112320.0,112310.0,0.01391339]
[1760152250603,1.22479766,112320.0,112310.0,0.01391339]
[1760152251202,1.20128636,112320.0,112310.0,0.01391339]
[1760152252699,1.20228636,112320.0,112310.0,0.01391339]
[1760152253322,1.2267539,112320.0,112310.0,0.01391339]
[1760152254805,1.22675591,112320.0,112310.0,0.01391339]
[1760152255106,1.24498987,112320.0,112310.0,0.04561339]
[1760152255300,1.26946424,112320.0,112310.0,0.03561339]
[1760152255503,0.002,112320.0,112310.0,0.88534249]
[1760152255704,0.35256456,112320.0,112310.0,0.90534249]
[1760152255999,0.35256456,112320.0,112310.0,0.54454249]
[1760152256311,0.35256456,112320.0,112310.0,0.01391339]
[1760152256312,0.84367848,112320.0,112310.0,0.01391339]
[1760152257006,0.86768368,112320.0,112310.0,0.01391339]
[1760152257208,1.26768368,112320.0,112310.0,0.01391339]
[1760152257906,1.26768368,112320.0,112310.0,9e-08]
[1760152260005,0.86768368,112320.0,112310.0,9e-08]
[1760152260205,0.51711912,112320.0,112310.0,0.01356009]
[1760152260407,0.86768368,112320.0,112310.0,9e-08]
[1760152261011,0.86668368,112320.0,112310.0,0.03526009]
[1760152261210,0.8677562,112320.0,112310.0,0.03526009]
[1760152261405,0.8677562,112320.0,112310.0,0.01356009]
[1760152261601,0.5069562,112320.0,112310.0,0.03526009]
[1760152261805,0.02507772,112320.0,112310.0,0.53418929]
[1760152262006,0.00207252,112320.0,112310.0,0.89498929]
[1760152262308,0.09099372,112320.0,112310.0,0.79606009]
[1760152262514,0.024272,112320.0,112310.0,0.89498929]
[1760152263814,0.113194,112320.0,112310.0,0.44526009]
[1760152264011,0.113194,112320.0,112310.0,0.80606009]
[1760152264210,0.113194,112320.0,112310.0,0.44526009]
[1760152264713,0.5056375,112320.0,112310.0,0.02356009]
[1760152264914,0.473994,112320.0,112310.0,0.02356009]
[1760152265711,0.473994,112320.0,112310.0,0.01356009]
[1760152265907,0.9056375,112320.0,112310.0,9e-08]
[1760152266711,0.5056375,112320.0,112310.0,0.01356009]
[1760152266911,0.37483656,112320.0,112310.0,0.52418989]
[1760152267118,0.37383656,112320.0,112310.0,0.88498989]
[1760152267318,0.37483656,112320.0,112310.0,0.88498989]
[1760152267711,0.37483656,112320.0,112310.0,0.89498989]
[1760152267906,0.46375776,112320.0,112310.0,0.80606009]
[1760152268121,0.82455776,112320.0,112310.0,0.01356009]
[1760152268414,0.46375776,112320.0,112310.0,0.02356009]
[1760152268610,0.82455776,112320.0,112310.0,0.02356009]
[1760152268809,0.82455776,112320.0,112310.0,0.01356009]
[1760152269220,1.22455776,112320.0,112310.0,9e-08]
[1760152271918,0.8739932,112320.0,112310.0,9e-08]
[1760152272118,1.22455776,112320.0,112310.0,9e-08]
[1760152272518,0.088945,112290.0,112270.0,0.01356]
[1760152272708,0.80031746,112280.0,112270.0,0.02356]
[1760152272912,0.82186341,112280.0,112270.0,0.02356]
[1760152273511,0.82186341,112280.0,112250.0,0.07714916]
[1760152273512,0.0889688,112260.0,112250.0,0.07714916]
[1760152273727,0.0889688,112260.0,112240.0,0.07714916]
[1760152273728,0.0889767,112250.0,112240.0,0.07714916]
[1760152274014,0.0889767,112250.0,112220.0,0.5748875]
[1760152274015,0.0889926,112230.0,112220.0,0.09267032]
[1760152274218,0.1317244,112230.0,112220.0,0.02356]
[1760152274418,0.26843497,112230.0,112220.0,0.01]
[1760152274620,0.0890997,112230.0,112220.0,0.02356]
[1760152274821,0.0890005,112220.0,112210.0,0.01356]
[1760152275022,0.80036506,112220.0,112210.0,0.01356]
[1760152275320,0.0890084,112210.0,112200.0,0.01367093]
[1760152275520,0.0891164,112210.0,112200.0,0.01367093]
[1760152275823,0.0891164,112210.0,112200.0,0.49278125]
[1760152276016,0.47181635,112210.0,112200.0,0.01367093]
[1760152276322,0.80048096,112210.0,112200.0,0.01367093]
[1760152276522,0.4499164,112210.0,112200.0,0.00011093]
[1760152276722,0.80048096,112210.0,112200.0,0.00011093]
[1760152277023,0.80048096,112210.0,112200.0,0.01011093]
[1760152277218,0.40369752,112210.0,112200.0,0.01011093]
[1760152277420,0.49270602,112210.0,112200.0,0.01011093]
[1760152277628,0.35067256,112210.0,112200.0,0.44537093]
[1760152277812,0.000108,112210.0,112200.0,0.80617093]
[1760152278017,0.0695588,112210.0,112200.0,0.87348733]
[1760152278218,0.35056456,112240.0,112220.0,0.01356]
[1760152278426,0.44184569,112240.0,112230.0,0.37436]
[1760152278618,0.8698241,112240.0,112230.0,0.01356]
[1760152278926,0.0889926,112230.0,112220.0,0.01356]
[1760152279120,0.06947494,112240.0,112230.0,0.01356]
[1760152279320,0.35056456,112250.0,112240.0,0.01356]
[1760152279519,0.46133457,112250.0,112240.0,0.02356]
[1760152279714,0.46133457,112250.0,112240.0,0.01356]
[1760152280117,0.02179331,112250.0,112240.0,0.78436]
[1760152280316,0.3608,112280.0,112270.0,0.01356]
[1760152280522,0.0889376,112300.0,112290.0,0.01356]
[1760152280717,0.4611779,112300.0,112290.0,0.02356]
[1760152280926,0.80030216,112300.0,112290.0,0.02356]
[1760152281328,0.80030216,112300.0,112290.0,0.01]
[1760152281527,1.26426595,112300.0,112290.0,0.01]
[1760152281727,0.0889458,112290.0,112280.0,0.01356]
[1760152281920,0.4497458,112290.0,112280.0,0.01356]
[1760152282126,0.43951036,112290.0,112280.0,0.02356]
[1760152282324,0.43951036,112290.0,112280.0,0.37436]
[1760152282622,0.43951036,112290.0,112280.0,0.38436]
[1760152282831,0.43951036,112290.0,112280.0,0.02356]
[1760152283230,0.43951036,112290.0,112280.0,0.01356]
[1760152283633,0.80031036,112290.0,112280.0,0.01356]
[1760152283828,0.80031036,112290.0,112280.0,0.04356]
[1760152284132,0.80231036,112290.0,112280.0,0.01356]
[1760152284328,0.87239465,112290.0,112280.0,0.01356]
[1760152284931,0.87139465,112290.0,112280.0,0.01356]
[1760152285128,1.27039465,112290.0,112280.0,0.01356]
[1760152285528,0.0889536,112280.0,112270.0,0.01356]
[1760152285726,0.4497536,112280.0,112270.0,0.01356]
[1760152285929,0.0889615,112270.0,112260.0,0.01356]
[1760152286131,0.80032606,112270.0,112260.0,0.01356]
[1760152287029,0.71136456,112270.0,112260.0,0.01356]
[1760152287227,0.43188429,112290.0,112280.0,0.01393]
[1760152287535,0.78144885,112290.0,112280.0,0.02393]
[1760152287935,0.43088429,112290.0,112280.0,0.5128832]
[1760152288137,0.07008429,112290.0,112280.0,0.8736832]
[1760152288436,0.71136456,112310.0,112280.0,0.8736832]
[1760152288437,0.49441363,112320.0,112310.0,0.01393]